bitfinex/quotes_ETHUSD_20250406
["timestamp","ask_amount","ask_price","bid_price","bid_amount"]
[1743974470182,4.5,1596.8,1596.7,11.80011129]
[1743974470379,45.15,1596.9,1596.8,7.09382]
[1743974470739,53.836,1596.9,1596.8,7.09382]
[1743974470967,53.835,1596.9,1596.8,7.5608297]
[1743974471868,4.5,1597.0,1596.9,9.26213]
[1743974472073,4.5,1597.0,1596.9,16.48162726]
[1743974472375,13.182,1597.4,1597.2,12.52145]
[1743974472551,13.182,1597.4,1597.2,18.05865129]
[1743974472750,13.182,1597.4,1597.2,11.79785129]
[1743974473078,0.55,1597.5,1597.4,6.26017]
[1743974473240,0.55,1597.5,1597.4,12.57597129]
[1743974473850,9.231,1597.5,1597.4,12.57597129]
[1743974474742,0.55,1597.5,1597.4,12.57597129]
[1743974474944,0.55,1597.5,1597.4,14.91862118]
[1743974475456,0.77796696,1597.5,1597.4,17.91862118]
[1743974476270,0.55,1597.5,1597.4,17.91862118]
[1743974477468,0.78071393,1597.5,1597.4,14.91862118]
[1743974477994,0.78071393,1597.5,1597.4,8.65845118]
[1743974478183,0.79613918,1597.5,1597.4,7.52398376]
[1743974478595,0.56542525,1597.5,1597.4,7.52398376]
[1743974478883,0.79613918,1597.5,1597.4,7.52398376]
[1743974479386,0.79613918,1597.5,1597.4,7.58657232]
[1743974479584,0.79613918,1597.5,1597.4,9.52498868]
[1743974479782,4.5,1598.0,1597.6,6.25929]
[1743974479986,58.42357,1598.2,1597.4,3.26481868]
[1743974479987,13.17,1597.9,1597.8,5.53720129]
[1743974480187,13.38231579,1597.9,1597.8,5.53720129]
[1743974480566,0.21231579,1597.9,1597.8,6.01254446]
[1743974480761,0.21231579,1597.9,1597.8,5.53720129]
[1743974480963,0.21231579,1597.9,1597.8,1.6536256]
[1743974481177,0.11231579,1597.9,1597.8,7.9122256]
[1743974481487,0.20415676,1597.9,1597.8,14.20592689]
[1743974481665,0.20415676,1597.9,1597.8,7.94732689]
[1743974482175,0.20415676,1597.9,1597.8,1.6536256]
[1743974482489,4.70415676,1597.9,1597.6,5.53720129]
[1743974483468,4.70415676,1597.9,1597.6,11.79658129]
[1743974483870,4.70415676,1597.9,1597.6,5.53720129]
[1743974484072,4.70415676,1597.9,1597.6,11.79658129]
[1743974484994,4.70415676,1597.9,1597.6,18.05581129]
[1743974485182,8.662,1597.8,1597.7,1.80558113]
[1743974485577,8.85292698,1597.8,1597.6,11.79658129]
[1743974485965,8.85292698,1597.8,1597.6,5.53720129]
[1743974486772,8.85292698,1597.8,1597.6,11.79654129]
[1743974487392,8.84992698,1597.8,1597.6,11.79645129]
[1743974487703,13.34992698,1597.8,1597.6,11.79645129]
[1743974487878,13.34992698,1597.8,1597.7,1.17964513]
[1743974488260,4.69092698,1597.8,1597.7,1.17964513]
[1743974488489,4.69092698,1597.8,1597.7,7.43863513]
[1743974488875,4.69092698,1597.8,1597.7,8.19963513]
[1743974489195,0.19092698,1597.8,1597.7,8.19963513]
[1743974489498,4.5,1598.1,1597.9,6.25795]
[1743974489710,4.5,1598.1,1598.0,11.79502129]
[1743974489873,13.156,1598.1,1598.0,11.79502129]
[1743974490507,13.156,1598.1,1598.0,5.53720129]
[1743974490886,4.5,1598.1,1598.0,11.79502129]
[1743974491699,4.5,1598.1,1597.9,6.25815]
[1743974491912,4.5,1598.1,1598.0,5.53720129]
[1743974492112,4.5,1598.1,1598.0,11.79502129]
[1743974492273,13.153,1598.1,1598.0,11.79502129]
[1743974492673,13.31549953,1598.1,1598.0,12.62682129]
[1743974493918,13.31549953,1598.1,1598.0,6.36900129]
[1743974494078,13.31549953,1598.1,1598.0,13.80618861]
[1743974494277,13.31549953,1598.1,1597.9,5.53720129]
[1743974494680,4.5,1598.0,1597.9,5.53720129]
[1743974495188,4.6626311,1598.0,1597.9,5.53720129]
[1743974496792,13.3096311,1598.0,1597.9,5.53720129]
[1743974497623,19.5674511,1598.0,1597.7,5.53720129]
[1743974497829,6.2586,1597.8,1597.5,5.53720129]
[1743974498114,0.16109585,1597.7,1597.5,6.25977]
[1743974498285,0.16109585,1597.7,1597.6,5.53720129]
[1743974498487,11.57695,1597.9,1597.6,5.53720129]
[1743974498688,0.16109585,1597.7,1597.6,5.53720129]
[1743974499023,10.75874,1597.8,1597.6,5.53720129]
[1743974499187,10.75874,1597.8,1597.3,6.26036]
[1743974499188,0.16109585,1597.7,1597.4,6.00330616]
[1743974499394,0.16109585,1597.7,1597.4,7.85570978]
[1743974500142,10.75956,1597.6,1597.2,0.8331]
[1743974500434,0.7765,1597.3,1597.0,5.53720129]
[1743974500636,8.643,1597.2,1596.9,5.53720129]
[1743974500795,4.66021827,1597.1,1596.9,5.53720129]
[1743974501001,4.5,1597.0,1596.9,5.53720129]
[1743974501395,4.5,1597.0,1596.7,5.53720129]
[1743974501396,4.65890148,1597.0,1596.7,5.53720129]
[1743974501626,4.65890148,1597.0,1596.7,6.13857938]
[1743974501805,10.92064148,1597.0,1596.7,6.13857938]
[1743974502022,4.65890148,1597.0,1596.7,6.13857938]
[1743974502527,10.76223,1596.9,1596.7,5.53720129]
[1743974502729,4.5,1596.9,1596.7,5.53720129]
[1743974503040,0.15552273,1596.8,1596.5,5.53720129]
[1743974503243,13.141,1596.7,1596.5,5.53720129]
[1743974503398,13.141,1596.7,1596.5,0.55372013]
[1743974503596,0.15552273,1596.6,1596.5,0.55372013]
[1743974503814,13.141,1596.7,1596.5,0.55372013]
[1743974504026,0.153898,1596.6,1596.4,6.12254845]
[1743974504227,0.153898,1596.6,1596.3,0.8203]
[1743974504526,4.65332697,1596.5,1596.3,0.8203]
[1743974504725,4.65332697,1596.5,1596.1,13.20797845]
[1743974504928,8.79232697,1596.5,1596.4,6.12254845]
[1743974505430,8.79232697,1596.5,1596.4,7.3612373]
[1743974505625,8.79232697,1596.5,1596.4,6.12254845]
[1743974507211,8.79232697,1596.5,1596.4,12.38663845]
[1743974507420,8.79232697,1596.5,1596.4,6.12254845]
[1743974507613,8.79232697,1596.5,1596.3,6.26434]
[1743974508605,8.79232697,1596.5,1596.3,6.26427]
[1743974508806,8.79232697,1596.5,1596.3,8.10258956]
[1743974510553,8.79232697,1596.5,1596.2,5.85406561]
[1743974510738,4.5,1596.4,1596.2,5.85406561]
[1743974510902,4.5,1596.4,1596.2,5.03376561]
[1743974511236,0.15214069,1596.3,1596.2,5.03376561]
[1743974511422,4.5,1596.4,1596.2,5.03376561]
[1743974511622,4.65192097,1596.3,1596.2,5.03376561]
[1743974511820,10.91640097,1596.3,1596.2,5.03376561]
[1743974512120,11.72010097,1596.3,1596.2,5.03376561]
[1743974512811,15.04940097,1596.3,1596.2,0.53376561]
[1743974513138,15.86810097,1596.3,1596.2,0.53376561]
[1743974513733,6.97062097,1596.3,1596.2,0.53376561]
[1743974513908,14.78392097,1596.3,1596.2,0.53376561]
[1743974517753,21.04840097,1596.3,1596.2,0.53376561]
[1743974517949,14.78392097,1596.3,1596.2,0.53376561]
[1743974518752,21.04840097,1596.3,1596.2,0.53376561]
[1743974519724,8.77992097,1596.3,1596.2,0.53376561]
[1743974520719,15.04440097,1596.3,1596.2,0.53376561]
[1743974521860,21.04440097,1596.3,1596.2,0.53376561]
[1743974522362,21.83890097,1596.3,1596.2,0.53376561]
[1743974522732,22.31804059,1596.3,1596.2,0.53376561]
[1743974523527,25.31804059,1596.3,1596.2,0.53376561]
[1743974524074,6.26687,1595.7,1595.4,0.83569]
[1743974524227,8.75685108,1595.6,1595.4,0.83569]
[1743974524858,12.26761439,1595.5,1595.4,0.00439]
[1743974525263,12.40046547,1595.5,1595.4,0.00439]
[1743974526058,6.26841,1595.3,1595.2,3.3603586]
[1743974526267,6.27018,1594.9,1594.6,0.8313]
[1743974526465,20.89339439,1594.8,1594.4,0.8313]
[1743974526766,6.40383108,1594.7,1594.4,0.710343]
[1743974526936,6.27117,1594.6,1594.2,1.30808641]
[1743974527265,5.99999439,1594.6,1594.2,1.30808641]
[1743974527568,0.13285108,1594.5,1594.2,7.58080641]
[1743974527729,0.13285108,1594.5,1594.2,9.19364172]
[1743974527937,12.40458547,1594.5,1594.1,2.27632673]
[1743974528131,13.20078547,1594.5,1594.1,2.27632673]
[1743974528538,19.47266547,1594.5,1594.1,2.27632673]
[1743974528762,6.27196,1594.4,1594.1,2.27632673]
[1743974529063,8.74584117,1594.3,1594.1,2.27632673]
[1743974529263,14.74583556,1594.3,1594.1,2.27632673]
[1743974529464,21.01820556,1594.3,1594.1,2.27632673]
[1743974529942,6.27273,1594.2,1594.1,2.27632673]
[1743974530145,12.27272439,1594.2,1594.1,2.27632673]
[1743974530445,12.39856556,1594.2,1594.1,2.27632673]
[1743974530765,12.39856556,1594.2,1593.3,6.27595]
[1743974530766,6.2742,1593.9,1593.3,7.03332]
[1743974530965,59.77599439,1593.8,1593.4,9.27586]
[1743974531142,59.77599439,1593.8,1593.5,12.55068]
[1743974531353,0.7962,1593.6,1593.0,0.31439938]
[1743974531555,5.99999439,1593.6,1593.1,6.14251981]
[1743974531731,8.619,1593.5,1593.2,0.67702191]
[1743974531932,8.74484117,1593.5,1593.2,0.61425198]
[1743974532181,8.74484117,1593.5,1593.1,6.20528061]
[1743974532361,8.74484117,1593.5,1593.2,9.73810985]
[1743974532660,8.74484117,1593.5,1593.1,12.48231061]
[1743974532661,8.619,1593.5,1593.1,12.41934981]
[1743974532978,8.619,1593.5,1593.1,12.41955981]
[1743974533136,8.619,1593.5,1593.1,14.36496979]
[1743974533539,0.7962,1593.4,1592.9,0.47758623]
[1743974533738,8.619,1593.5,1593.0,6.27728]
[1743974533966,8.619,1593.5,1592.9,12.42032981]
[1743974533967,14.89478,1593.5,1592.9,12.42032981]
[1743974534161,14.89478,1593.5,1593.0,1.24203298]
[1743974534636,21.17061,1593.5,1592.9,12.42019981]
[1743974534961,6.27642,1593.3,1592.8,6.74647354]
[1743974535133,6.27642,1593.3,1592.8,0.46824354]
[1743974535338,6.27642,1593.3,1592.7,13.31433]
[1743974535568,6.27589,1593.4,1592.7,9.01221661]
[1743974535876,6.27634,1593.3,1592.8,6.2781]
[1743974536078,20.89457439,1593.5,1592.8,0.06277651]
[1743974536464,5.99999439,1593.4,1592.9,6.27753]
[1743974536667,5.99999439,1593.4,1592.9,6.27785]
[1743974536871,12.27593439,1593.4,1593.0,0.627785]
[1743974537070,8.619,1593.5,1593.0,6.2772]
[1743974537271,8.618,1593.4,1593.0,6.2772]
[1743974537642,8.618,1593.4,1592.9,12.42017981]
[1743974537941,8.618,1593.4,1593.0,6.27724]
[1743974538153,8.618,1593.4,1592.9,12.42017981]
[1743974538154,6.79619439,1593.6,1593.1,6.27697]
[1743974538355,8.62,1593.5,1593.1,13.181497]
[1743974539186,6.79619439,1593.6,1593.2,6.27666]
[1743974539487,8.619,1593.5,1593.1,6.904527]
[1743974539667,8.619,1593.5,1593.2,6.27664]
[1743974539864,8.619,1593.5,1593.1,6.904527]
[1743974540189,8.619,1593.5,1593.3,6.27614]
[1743974540470,8.618,1593.4,1593.2,6.9669627]
[1743974540674,8.618,1593.4,1593.3,6.27628]
[1743974540972,8.617,1593.5,1593.2,1.15356106]
[1743974541156,8.617,1593.5,1593.3,6.27596]
[1743974541773,5.99999439,1593.6,1593.3,12.55206]
[1743974542072,5.99999439,1593.6,1593.3,6.27596]
[1743974542073,8.617,1593.5,1593.3,6.27596]
[1743974542240,45.9658,1593.8,1593.6,6.2749]
[1743974542438,45.9658,1593.8,1593.5,0.7571]
[1743974542439,8.617,1593.7,1593.5,0.7571]
[1743974542652,8.617,1593.7,1593.5,7.735824]
[1743974542853,6.2751,1593.6,1593.2,0.46310836]
[1743974543050,20.89200439,1593.7,1593.2,6.27639]
[1743974543255,20.89194439,1593.7,1593.1,7.72445761]
[1743974543476,6.27512,1593.6,1593.1,7.72442761]
[1743974543649,20.89194439,1593.7,1593.2,6.27665]
[1743974543848,27.16689439,1593.7,1593.2,6.27665]
[1743974544050,20.89194439,1593.7,1593.2,7.73309227]
[1743974544381,5.99999439,1593.7,1593.3,6.2761]
[1743974544555,8.615,1593.6,1593.3,6.2761]
[1743974545763,8.615,1593.6,1593.3,12.55219]
[1743974545964,8.615,1593.6,1593.4,6.27588]
[1743974546379,5.99999439,1593.7,1593.3,12.55224]
[1743974546584,8.612,1593.5,1593.3,7.67069717]
[1743974546757,8.612,1593.5,1592.8,7.52542844]
[1743974546758,6.27658,1593.3,1592.8,7.52542844]
[1743974547081,6.27681,1593.2,1592.8,1.24756844]
[1743974547248,18.55323439,1593.3,1592.8,7.52562844]
[1743974547449,5.99999439,1593.3,1592.8,8.28441872]
[1743974547787,12.27649439,1593.3,1592.8,14.56245872]
[1743974547993,5.99999439,1593.3,1592.9,6.34037879]
[1743974548284,5.99999439,1593.3,1592.9,7.11228875]
[1743974548488,8.611,1593.6,1593.3,6.27613]
[1743974548799,0.7813,1593.5,1592.8,0.46946844]
[1743974548947,5.99999439,1593.4,1592.9,0.7781]
[1743974549142,6.27642,1593.3,1592.9,0.7781]
[1743974549483,5.99999439,1593.4,1593.0,6.27739]
[1743974549684,5.99999439,1593.4,1593.1,6.2769]
[1743974549867,5.99999439,1593.4,1593.1,12.61656914]
[1743974550068,5.99999439,1593.4,1593.1,13.81544691]
[1743974550447,5.99999439,1593.4,1593.2,6.27664]
[1743974550652,8.609,1593.3,1593.2,6.27664]
[1743974551491,57.70487,1593.8,1593.2,6.27664]
[1743974551492,8.608,1593.6,1593.4,6.27558]
[1743974551646,8.608,1593.6,1593.5,6.27549]
[1743974551870,53.763,1593.8,1593.6,6.27496]
[1743974552497,53.763,1593.8,1593.7,6.2747]
[1743974552874,8.607,1594.1,1593.9,6.27367]
[1743974553074,52.01689439,1594.4,1594.0,6.33625127]
[1743974553291,60.0891,1594.4,1594.0,1.26099213]
[1743974553489,60.0891,1594.4,1593.9,12.54748]
[1743974554096,8.605,1594.3,1593.8,3.7718]
[1743974554296,8.605,1594.3,1594.0,6.2733]
[1743974554498,45.211,1594.4,1594.3,9.27234]
[1743974554705,45.211,1594.4,1594.3,3.0]
[1743974555569,45.211,1594.4,1594.3,9.27234]
[1743974555777,45.211,1594.4,1594.3,10.65881833]
[1743974556111,45.211,1594.4,1594.3,10.72153505]
[1743974556618,8.602,1594.6,1594.5,9.27155]
[1743974556974,46.0247,1595.0,1594.7,3.0]
[1743974557175,8.601,1594.9,1594.7,9.27077]
[1743974557390,8.601,1594.9,1594.7,15.54132]
[1743974557778,8.601,1594.9,1594.4,6.27192]
[1743974557779,8.601,1594.9,1594.4,3.55]
[1743974557975,8.601,1594.9,1594.4,6.73380655]
[1743974558175,46.0247,1595.0,1594.6,6.27099]
[1743974558390,8.6,1594.9,1594.5,6.27138]
[1743974559118,8.6,1594.9,1594.5,0.06270833]
[1743974559282,8.6,1594.9,1594.6,6.27092]
[1743974559671,8.597,1594.8,1594.5,12.54295]
[1743974559877,8.597,1594.8,1594.4,6.27174]
[1743974560115,8.597,1594.8,1594.5,6.2714]
[1743974560481,8.597,1594.8,1594.5,6.27136]
[1743974561015,14.59699439,1594.8,1594.4,6.27174]
[1743974561223,6.27081,1594.7,1594.3,7.50653401]
[1743974561381,0.7959,1594.7,1594.3,0.46663401]
[1743974561582,7.0668,1594.7,1594.2,6.27257]
[1743974561881,13.33789,1594.7,1594.2,6.33522941]
[1743974562083,13.33789,1594.7,1594.2,6.27251]
[1743974562424,18.54281439,1594.6,1594.1,6.75044406]
[1743974562624,8.593,1594.5,1594.2,6.33514566]
[1743974562826,8.593,1594.5,1594.2,6.27242]
[1743974563288,8.593,1594.5,1594.1,16.02348406]
[1743974563680,8.593,1594.5,1594.2,6.27266]
[1743974563922,8.593,1594.5,1594.2,6.27251]
[1743974564128,8.593,1594.5,1594.1,9.75053406]
[1743974564324,6.27209,1594.4,1594.1,0.47746406]
[1743974564630,8.593,1594.5,1594.1,6.27295]
[1743974565013,8.593,1594.5,1594.2,6.27262]
[1743974565507,14.86482,1594.5,1594.0,7.07555]
[1743974565699,14.86482,1594.5,1594.1,6.27309]
[1743974566226,6.27182,1594.5,1594.1,6.27309]
[1743974566424,8.588,1594.4,1594.1,6.27309]
[1743974566946,14.58799439,1594.4,1594.1,6.27309]
[1743974567112,0.8171,1594.3,1593.9,0.4792102]
[1743974567284,6.81709439,1594.3,1594.0,6.27345]
[1743974567489,6.81709439,1594.3,1593.9,6.27388]
[1743974567789,6.81709439,1594.3,1593.9,6.27371]
[1743974568041,13.08948439,1594.3,1593.9,6.27371]
[1743974568234,19.36205439,1594.3,1593.8,7.06519]
[1743974568443,5.99999439,1594.2,1593.5,6.14251981]
[1743974568749,18.54685439,1594.1,1593.6,7.06585]
[1743974568901,12.27334439,1594.1,1593.6,7.06585]
[1743974569102,18.54685439,1594.1,1593.6,7.06585]
[1743974569303,6.27354,1594.0,1593.6,7.06585]
[1743974569541,12.27334439,1594.1,1593.6,13.34072]
[1743974569542,8.586,1593.9,1593.6,13.34072]
[1743974569845,53.777,1594.2,1593.9,6.27365]
[1743974570149,53.777,1594.2,1594.0,6.2735]
[1743974570304,45.192,1594.2,1594.0,12.54684]
[1743974570498,8.584,1594.1,1594.0,12.54684]
[1743974570753,8.584,1594.1,1594.0,14.592424]
[1743974571054,8.584,1594.4,1594.2,6.2725]
[1743974571364,8.584,1594.4,1594.3,6.27234]
[1743974571930,8.583,1594.4,1594.3,6.27234]
[1743974572770,8.582,1594.5,1594.4,6.27193]
[1743974573130,45.196,1594.8,1594.7,6.27077]
[1743974573335,45.196,1594.8,1594.4,17.89728535]
[1743974573336,45.196,1594.8,1594.6,12.542]
[1743974573640,45.196,1594.8,1594.7,6.27077]
[1743974574266,45.196,1594.8,1594.7,9.27077]
[1743974574576,8.58,1594.9,1594.7,10.03567]
[1743974574781,5.99999439,1595.2,1595.0,6.26956]
[1743974575081,8.579,1595.3,1595.0,6.26956]
[1743974575232,45.194,1595.4,1595.1,6.26911]
[1743974575434,8.579,1595.3,1595.2,6.26873]
[1743974576185,13.08580439,1595.7,1595.2,7.597634]
[1743974576466,6.81869439,1595.7,1595.3,12.53661]
[1743974576669,6.81869439,1595.7,1595.3,12.53651]
[1743974576853,13.08558439,1595.7,1595.3,12.53651]
[1743974577068,8.576,1595.6,1595.3,6.26824]
[1743974577267,8.576,1595.6,1595.3,1.10699615]
[1743974577482,8.576,1595.6,1595.4,6.26771]
[1743974577689,13.08474439,1595.9,1595.4,6.26771]
[1743974577853,8.575,1595.6,1595.4,6.26771]
[1743974578361,8.575,1595.6,1595.4,6.26801]
[1743974578683,8.574,1595.5,1595.4,6.26801]
[1743974578885,8.574,1595.5,1595.4,6.26802]
[1743974579052,6.81869439,1595.9,1595.3,0.48017215]
[1743974579385,8.573,1595.8,1595.4,0.86047258]
[1743974579548,8.573,1595.8,1595.7,6.26684]
[1743974579749,8.573,1595.8,1595.6,6.2671]
[1743974579949,51.19399439,1596.0,1595.7,6.26654]
[1743974580149,45.194,1596.0,1595.9,6.26605]
[1743974580791,45.194,1596.0,1595.9,7.601092]
[1743974581485,8.569,1596.2,1596.1,6.26499]
[1743974582259,8.569,1596.2,1595.9,1.79581259]
[1743974582260,8.569,1596.2,1595.9,14.32773259]
[1743974582490,8.569,1596.2,1596.0,6.2655]
[1743974582990,8.569,1596.2,1596.1,6.26527]
[1743974583495,8.569,1596.2,1596.0,6.2655]
[1743974583992,8.569,1596.2,1595.9,6.72662059]
[1743974584197,6.26568,1596.0,1595.6,7.08519]
[1743974584398,5.99999439,1596.0,1595.7,3.0]
[1743974584594,12.26636439,1595.9,1595.4,7.08607]
[1743974584758,6.2671,1595.7,1595.4,0.46006497]
[1743974584959,8.563,1595.6,1595.3,6.26827]
[1743974585256,8.563,1595.6,1595.4,12.53568]
[1743974585452,8.563,1595.6,1595.5,6.26762]
[1743974585713,8.563,1595.6,1595.4,6.26789]
[1743974586194,8.563,1595.6,1595.3,3.0]
[1743974586382,8.563,1595.6,1595.3,9.26826]
[1743974586582,8.563,1595.6,1595.3,15.53649]
[1743974587093,8.563,1595.6,1595.4,6.268]
[1743974587271,8.563,1595.6,1595.4,12.53574]
[1743974587595,8.563,1595.6,1595.5,7.08572]
[1743974588094,8.563,1595.6,1595.5,10.08572]
[1743974588293,8.563,1595.6,1595.5,7.08572]
[1743974588510,8.558,1595.7,1595.6,6.26705]
[1743974588657,14.55799439,1596.0,1595.8,6.26627]
[1743974588852,8.558,1596.0,1595.7,6.26684]
[1743974589056,5.99999439,1596.1,1595.6,6.26723]
[1743974589309,8.557,1596.0,1595.6,1.76110041]
[1743974589510,8.557,1596.0,1595.9,6.26605]
[1743974589901,8.557,1596.0,1595.8,6.26625]
[1743974590393,8.557,1596.0,1595.9,6.26605]
[1743974590596,8.557,1596.0,1595.9,7.52554595]
[1743974591513,5.99999439,1596.1,1595.9,7.52554595]
[1743974591514,8.555,1596.2,1596.1,6.26511]
[1743974591672,14.55399439,1596.3,1596.2,6.26487]
[1743974591876,5.99999439,1596.3,1596.2,6.26487]
[1743974592137,14.55399439,1596.3,1596.2,6.26487]
[1743974592276,5.99999439,1596.3,1596.2,8.34891083]
[1743974592611,8.552,1596.5,1596.4,6.26409]
[1743974594110,5.99999439,1596.7,1596.6,6.2633]
[1743974594111,14.55099439,1596.7,1596.6,6.2633]
[1743974594309,8.551,1596.7,1596.6,6.2633]
[1743974594890,8.551,1596.7,1596.6,6.73337903]
[1743974595104,8.548,1596.8,1596.7,6.2629]
[1743974595679,45.154,1597.0,1596.7,6.2629]
[1743974595881,8.547,1596.9,1596.7,6.2629]
[1743974596308,8.547,1596.9,1596.6,6.73337903]
[1743974596613,8.547,1596.9,1596.6,6.73319903]
[1743974596824,0.794,1596.8,1596.3,7.08417]
[1743974597009,13.31921,1596.8,1596.3,7.08401]
[1743974597320,6.26312,1596.7,1596.3,12.9925824]
[1743974597727,6.26312,1596.7,1596.3,6.7282624]
[1743974597885,12.26353439,1596.6,1596.3,0.4639524]
[1743974598085,12.26353439,1596.6,1596.2,6.2647]
[1743974598286,12.26353439,1596.6,1596.2,6.26485]
[1743974598580,12.26353439,1596.6,1596.2,6.26472]
[1743974598785,8.543,1596.5,1596.3,6.26427]
[1743974598985,8.543,1596.5,1596.3,12.52858]
[1743974599186,8.543,1596.5,1596.3,0.48153277]
[1743974599386,8.543,1596.5,1596.2,12.52951]
[1743974599586,8.543,1596.5,1596.2,12.52937]
[1743974599788,8.543,1596.5,1596.2,12.52943]
[1743974599987,8.543,1596.5,1596.2,6.26468]
[1743974600212,8.543,1596.5,1596.2,12.52942]
[1743974600412,8.543,1596.5,1596.2,6.26468]
[1743974600748,8.543,1596.5,1596.1,7.09476]
[1743974600882,8.543,1596.5,1596.2,6.26459]
[1743974601317,8.543,1596.5,1596.3,6.26448]
[1743974601489,8.543,1596.5,1596.1,7.09485]
[1743974601690,8.543,1596.5,1595.7,13.18831981]
[1743974601691,6.26465,1596.3,1595.7,13.18831981]
[1743974602042,6.26465,1596.3,1595.9,12.53188]
[1743974602337,0.7769,1596.2,1595.9,6.26591]
[1743974602535,7.04178,1596.2,1595.9,6.26591]
[1743974602719,6.26689,1595.7,1595.3,6.26821]
[1743974602926,20.80533439,1595.6,1595.3,1.331595]
[1743974603230,7.04454,1595.5,1595.1,6.26912]
[1743974603429,0.7769,1595.5,1595.2,6.26849]
[1743974603605,0.7769,1595.5,1595.0,3.779]
[1743974603606,7.04462,1595.5,1595.1,6.26916]
[1743974603802,6.456862,1595.5,1595.1,12.53823]
[1743974604134,0.189142,1595.5,1595.2,7.522613]
[1743974604433,0.189142,1595.5,1595.3,6.26822]
[1743974605510,0.189142,1595.5,1595.2,7.522563]
[1743974605711,6.456772,1595.5,1595.2,1.253823]
[1743974606016,6.26814,1595.4,1595.0,7.04837]
[1743974606210,6.26814,1595.4,1595.0,13.7887838]
[1743974606410,6.26814,1595.4,1595.0,13.7887238]
[1743974606612,6.26814,1595.4,1595.0,7.5193338]
[1743974606904,12.45679639,1595.5,1595.1,6.26886]
[1743974607249,12.53658,1595.4,1595.1,0.75188238]
[1743974607416,12.45682639,1595.5,1595.1,0.75188238]
[1743974607748,12.45682639,1595.5,1595.1,13.29012238]
[1743974607914,6.18913639,1595.5,1595.2,1.32901224]
[1743974608115,6.26805,1595.4,1595.2,1.32901224]
[1743974608314,6.18913639,1595.5,1595.2,6.26856]
[1743974609401,6.18913639,1595.5,1595.1,0.75188238]
[1743974609601,12.45710639,1595.5,1595.1,7.02107238]
[1743974609806,6.18913639,1595.5,1595.1,7.02101238]
[1743974610009,6.26841,1595.4,1595.1,0.75188238]
[1743974610219,12.45678639,1595.5,1595.1,7.02094238]
[1743974610421,18.72477639,1595.5,1595.1,7.02094238]
[1743974610917,6.26804,1595.4,1595.1,0.75188238]
[1743974611141,12.45678639,1595.5,1595.1,0.75188238]
[1743974611343,12.45678639,1595.5,1595.1,6.26906]
[1743974611562,18.72465639,1595.5,1595.1,6.26906]
[1743974611846,6.18913639,1595.5,1595.0,6.7405338]
[1743974612005,12.45689639,1595.5,1595.1,6.26917]
[1743974612209,6.26802,1595.4,1595.0,6.7403638]
[1743974612506,12.45689639,1595.5,1595.1,6.94321638]
[1743974612935,12.45689639,1595.5,1595.1,0.67403638]
[1743974613121,6.2685,1595.3,1594.9,6.26985]
[1743974613535,6.2685,1595.3,1594.9,12.5397]
[1743974613841,6.2685,1595.3,1594.9,6.26985]
[1743974614040,5.99999439,1595.4,1594.8,7.04934]
[1743974614241,5.99999439,1595.4,1594.9,6.26994]
[1743974614411,6.26871,1595.3,1594.9,6.26994]
[1743974614606,6.26867,1595.3,1594.9,6.26994]
[1743974614841,6.26882,1595.2,1594.9,6.26994]
[1743974615041,8.529,1595.1,1594.9,7.601866]
[1743974615244,8.529,1595.1,1594.9,7.601736]
[1743974615434,8.529,1595.1,1594.9,8.07634091]
[1743974615947,8.529,1595.1,1595.0,6.26959]
[1743974616257,8.527,1595.2,1595.0,6.2695]
[1743974616746,8.527,1595.2,1594.9,13.01439491]
[1743974617048,8.527,1595.2,1594.9,6.74441491]
[1743974617411,8.527,1595.2,1594.9,0.47460491]
[1743974617608,8.527,1595.2,1594.9,6.26984]
[1743974617816,8.527,1595.2,1595.0,6.26954]
[1743974618325,14.52499439,1595.4,1595.1,7.09579]
[1743974618658,14.52499439,1595.4,1595.1,13.36486]
[1743974618945,14.52499439,1595.4,1595.0,13.66590781]
[1743974619131,14.52499439,1595.4,1595.0,13.792838]
[1743974619336,14.52499439,1595.4,1595.0,13.792858]
[1743974619546,14.52499439,1595.4,1595.1,1.3792858]
[1743974619750,14.52499439,1595.4,1595.0,12.5389]
[1743974620140,20.79314439,1595.4,1595.0,6.26945]
[1743974620455,14.52499439,1595.4,1595.0,6.26945]
[1743974620950,14.52499439,1595.4,1595.1,6.26915]
[1743974621348,20.79304439,1595.4,1595.1,6.26915]
[1743974621515,14.52499439,1595.4,1595.1,6.26915]
[1743974621717,14.52499439,1595.4,1595.1,13.79199]
[1743974621949,14.52499439,1595.4,1595.1,7.52292]
[1743974622748,14.52499439,1595.4,1595.2,6.26852]
[1743974623051,14.52499439,1595.4,1595.1,6.26915]
[1743974623260,14.52499439,1595.4,1595.2,6.26878]
[1743974623458,8.52,1595.3,1595.1,6.896085]
[1743974623659,8.52,1595.3,1595.1,13.165255]
[1743974623868,8.52,1595.3,1594.9,6.74254582]
[1743974624011,14.78856,1595.3,1595.0,6.26944]
[1743974624437,14.78856,1595.3,1594.9,13.01234582]
[1743974624751,14.78849,1595.3,1595.0,6.26954]
[1743974624945,8.52,1595.3,1595.0,14.46716858]
[1743974625248,8.52,1595.3,1595.0,8.19762858]
[1743974625449,8.52,1595.3,1595.0,14.46704858]
[1743974625758,8.52,1595.3,1595.0,8.19762858]
[1743974626056,14.78845,1595.3,1595.0,6.26943]
[1743974626350,6.23099439,1595.4,1594.9,0.47267582]
[1743974626518,6.23099439,1595.4,1595.1,12.53788]
[1743974626519,8.516,1595.3,1595.1,12.53788]
[1743974626719,8.516,1595.3,1595.1,6.26882]
[1743974626915,8.516,1595.3,1595.1,12.53788]
[1743974627134,8.516,1595.3,1595.1,6.26882]
[1743974627365,8.516,1595.3,1595.1,7.602658]
[1743974627763,8.516,1595.3,1595.1,6.26882]
[1743974628579,8.516,1595.3,1595.0,12.53893]